bitfinex/quotes_BTCUSD_20251202
["timestamp","ask_amount","ask_price","bid_price","bid_amount"]
[1764696842086,0.22855359,91883.0,91880.0,0.04629]
[1764696842294,0.98698884,91920.0,91891.0,0.01088245]
[1764696842641,0.21760133,91912.0,91903.0,0.01088103]
[1764696842865,0.22847272,91915.0,91912.0,0.04629]
[1764696843075,0.22846419,91919.0,91912.0,0.04629]
[1764696843281,0.01087973,91914.0,91903.0,0.323]
[1764696843499,0.22848842,91909.0,91904.0,0.23513744]
[1764696843669,0.21761404,91906.0,91904.0,0.01752]
[1764696843872,0.21760251,91911.0,91907.0,0.01088056]
[1764696844073,0.21758216,91920.0,91911.0,0.22848068]
[1764696844074,0.01087938,91917.0,91911.0,0.22848068]
[1764696844301,0.21769876,91919.0,91915.0,0.01087961]
[1764696844504,0.22846497,91918.0,91916.0,0.01752]
[1764696844786,0.0001155,91919.0,91916.0,0.23510725]
[1764696844989,0.2176986,91919.0,91916.0,0.02839949]
[1764696845196,0.00116109,91917.0,91916.0,0.02839949]
[1764696845426,0.00116109,91917.0,91916.0,0.01752]
[1764696845624,0.00116109,91917.0,91915.0,0.001]
[1764696845765,0.21758997,91916.0,91915.0,0.001]
[1764696845971,0.21758997,91916.0,91915.0,0.01852]
[1764696846993,0.21807997,91916.0,91915.0,0.001]
[1764696847197,0.21807997,91916.0,91890.0,0.04629]
[1764696847198,0.21759707,91913.0,91912.0,0.01752]
[1764696847473,0.22850376,91903.0,91897.0,0.01088174]
[1764696847649,0.01088115,91902.0,91899.0,0.21762988]
[1764696847879,0.21764917,91891.0,91890.0,0.04629]
[1764696848007,0.0108834,91883.0,91877.0,0.01088411]
[1764696848208,0.01088293,91887.0,91881.0,0.01748]
[1764696848392,0.01088186,91896.0,91889.0,0.01088269]
[1764696848599,0.01088174,91897.0,91891.0,0.26450768]
[1764696848793,0.21764448,91893.0,91891.0,0.04686]
[1764696849004,0.21764448,91893.0,91892.0,0.01748]
[1764696849234,0.21764928,91891.0,91889.0,0.01748]
[1764696849450,0.21764072,91895.0,91892.0,0.04686]
[1764696849657,0.21765153,91890.0,91889.0,0.01748]
[1764696849865,0.22851801,91897.0,91892.0,0.2176467]
[1764696850089,0.01088151,91899.0,91895.0,0.22852167]
[1764696850292,0.21763969,91895.0,91894.0,0.04686]
[1764696850511,0.22851691,91897.0,91894.0,0.04686]
[1764696850711,0.22851691,91897.0,91895.0,0.01748]
[1764696850928,0.01088174,91897.0,91895.0,0.01748]
[1764696851146,0.01088151,91899.0,91895.0,0.02836198]
[1764696851350,0.22850758,91901.0,91898.0,0.21763145]
[1764696851552,0.22850758,91901.0,91895.0,0.23511871]
[1764696851553,0.01088151,91899.0,91895.0,0.23511871]
[1764696851990,0.21763496,91897.0,91895.0,0.01748]
[1764696852192,0.21763496,91897.0,91895.0,0.02248]
[1764696852448,0.01088151,91899.0,91895.0,0.24800128]
[1764696852585,0.22851193,91899.0,91896.0,0.21763732]
[1764696852788,0.21763522,91897.0,91895.0,0.01948]
[1764696853001,0.2176356,91897.0,91895.0,0.01948]
[1764696853192,0.21763732,91896.0,91895.0,0.01948]
[1764696853418,0.21763732,91896.0,91895.0,0.002]
[1764696853579,0.01388151,91899.0,91892.0,0.23512443]
[1764696853580,0.003,91899.0,91892.0,0.23512443]
[1764696853785,0.22851449,91898.0,91895.0,0.23052009]
[1764696854090,0.21763525,91897.0,91895.0,0.005]
[1764696854297,0.23396172,91896.0,91895.0,0.003]
[1764696854493,0.01088234,91892.0,91889.0,0.21765293]
[1764696854693,0.21764443,91893.0,91892.0,0.005]
[1764696854903,0.01088198,91895.0,91892.0,0.005]
[1764696855117,0.21764443,91893.0,91891.0,0.01748]
[1764696855531,0.2176468,91892.0,91891.0,0.01748]
[1764696856722,0.0108834,91883.0,91879.0,0.22856117]
[1764696856936,0.01088316,91885.0,91880.0,0.24603767]
[1764696857291,0.01088316,91885.0,91881.0,0.22855585]
[1764696857530,0.01088234,91892.0,91880.0,0.02836376]
[1764696857531,0.01088091,91904.0,91889.0,0.01088269]
[1764696857720,0.21763765,91896.0,91893.0,0.2753845]
[1764696857920,0.2285128,91899.0,91895.0,0.21763965]
[1764696858051,0.01088151,91899.0,91896.0,0.21763649]
[1764696858271,0.02633,91903.0,91900.0,0.22850923]
[1764696858472,0.25483183,91903.0,91900.0,0.22850717]
[1764696858927,0.03721103,91903.0,91900.0,0.22850717]
[1764696859272,0.24395129,91903.0,91900.0,0.22850717]
[1764696859471,0.22849936,91904.0,91901.0,0.22850662]
[1764696859820,0.01088103,91903.0,91898.0,0.22851414]
[1764696859992,0.21762312,91902.0,91899.0,0.21762918]
[1764696860194,0.21762312,91902.0,91900.0,0.002]
[1764696860397,0.23394988,91901.0,91900.0,0.002]
[1764696860647,0.01088162,91898.0,91897.0,0.01748]
[1764696860799,0.21764334,91894.0,91892.0,0.01748]
[1764696861006,0.01088198,91895.0,91892.0,0.01748]
[1764696861207,0.02633,91901.0,91896.0,0.01088186]
[1764696861523,0.24395692,91901.0,91900.0,0.005]
[1764696861715,0.24395692,91901.0,91900.0,0.002]
[1764696861898,0.24395692,91901.0,91894.0,0.0108821]
[1764696861899,0.01088186,91896.0,91892.0,0.01748]
[1764696862097,0.01088151,91899.0,91892.0,0.01748]
[1764696862098,0.01088151,91899.0,91895.0,0.01088198]
[1764696862356,0.01088151,91899.0,91896.0,0.01288186]
[1764696862515,0.21763496,91897.0,91896.0,0.002]
[1764696862730,0.21821563,91897.0,91896.0,0.002]
[1764696863110,0.00058067,91897.0,91896.0,0.002]
[1764696863349,0.00058067,91897.0,91896.0,0.00132]
[1764696863350,0.21821563,91897.0,91896.0,0.00132]
[1764696863614,0.00058067,91897.0,91896.0,0.003]
[1764696863813,0.21821563,91897.0,91896.0,0.003]
[1764696864771,0.21821563,91897.0,91896.0,0.005]
[1764696865263,0.26771563,91897.0,91896.0,0.005]
[1764696866096,0.26771563,91897.0,91896.0,0.002]
[1764696866503,0.21766101,91886.0,91885.0,0.01748]
[1764696866710,0.21765913,91887.0,91885.0,0.01748]
[1764696866951,0.21765913,91887.0,91861.0,0.07592806]
[1764696866952,0.01088328,91884.0,91879.0,0.21779304]
[1764696867128,0.22855012,91884.0,91881.0,0.23515225]
[1764696867329,0.22855012,91884.0,91882.0,0.01748]
[1764696867555,0.03666293,91887.0,91883.0,0.0108834]
[1764696867760,0.03666293,91887.0,91884.0,0.01088328]
[1764696867761,0.21766076,91887.0,91884.0,0.01088328]
[1764696867938,0.22854369,91887.0,91885.0,0.002]
[1764696868154,0.01088269,91889.0,91885.0,0.01288316]
[1764696868346,0.24344101,91886.0,91885.0,0.003]
[1764696869155,0.24344101,91886.0,91885.0,0.001]
[1764696869537,0.24344101,91886.0,91884.0,0.01748]
[1764696869747,0.22853674,91889.0,91884.0,0.235144]
[1764696869954,0.22853674,91889.0,91885.0,0.22066106]
[1764696870285,0.21766101,91886.0,91885.0,0.003]
[1764696870488,0.26693101,91886.0,91885.0,0.002]
[1764696870705,0.21766338,91885.0,91884.0,0.002]
[1764696870897,0.29268338,91885.0,91884.0,0.002]
[1764696871099,0.29343338,91885.0,91884.0,0.002]
[1764696871355,0.21767522,91880.0,91867.0,0.01748]
[1764696871555,0.28215522,91880.0,91867.0,0.01748]
[1764696871771,0.28215522,91880.0,91867.0,0.0283653]
[1764696871989,0.21767522,91880.0,91873.0,0.26455017]
[1764696872188,0.01088352,91882.0,91875.0,0.21768518]
[1764696872348,0.21767368,91881.0,91873.0,0.04686]
[1764696872751,0.21767368,91881.0,91878.0,0.01748]
[1764696872957,0.2176748,91881.0,91878.0,0.01748]
[1764696873255,0.22854379,91887.0,91884.0,0.001]
[1764696873455,0.21763158,91899.0,91889.0,0.01088269]
[1764696873655,0.01088162,91898.0,91894.0,0.0108821]
[1764696873859,0.01088162,91898.0,91891.0,0.21764917]
[1764696873860,0.0108821,91894.0,91891.0,0.21764917]
[1764696874063,0.21764005,91895.0,91891.0,0.01088245]
[1764696874290,0.21763043,91899.0,91895.0,0.01088198]
[1764696874514,0.01088139,91900.0,91891.0,0.09917]
[1764696874515,0.22851658,91898.0,91891.0,0.09917]
[1764696874705,0.2176417,91895.0,91890.0,0.29250387]
[1764696874884,0.21764233,91894.0,91891.0,0.22853121]
[1764696875314,0.22852368,91895.0,91891.0,0.22853121]
[1764696875468,0.22852535,91894.0,91891.0,0.22853121]
[1764696875671,0.22851953,91896.0,91892.0,0.01088234]
[1764696875898,0.01088186,91896.0,91892.0,0.01088234]
[1764696876120,0.01088174,91897.0,91895.0,0.001]
[1764696876342,0.21763515,91897.0,91895.0,0.001]
[1764696876742,0.22850955,91900.0,91896.0,0.28335703]
[1764696876942,0.01088139,91900.0,91897.0,0.28335444]
[1764696877153,0.01088115,91902.0,91899.0,0.06572]
[1764696877552,0.21762821,91900.0,91899.0,0.06545]
[1764696877957,0.00066775,91900.0,91899.0,0.06545]
[1764696879057,0.00066775,91900.0,91899.0,0.06645]
[1764696879260,0.00066775,91900.0,91899.0,0.06545]
[1764696879462,0.00066775,91900.0,91899.0,0.06772]
[1764696879592,0.00066775,91900.0,91899.0,0.28535022]
[1764696879811,0.00066775,91900.0,91899.0,0.06772]
[1764696880233,0.00066775,91900.0,91899.0,0.28335022]
[1764696880757,0.00066775,91900.0,91899.0,0.38402022]
[1764696881075,0.00066775,91900.0,91899.0,0.16639]
[1764696881256,0.00066775,91900.0,91899.0,0.28835022]
[1764696881463,0.00066775,91900.0,91899.0,0.30583022]
[1764696881620,0.00066775,91900.0,91899.0,0.28835022]
[1764696881823,0.00066775,91900.0,91899.0,0.24011022]
[1764696882852,0.00066775,91900.0,91899.0,0.22263022]
[1764696883051,0.00066775,91900.0,91899.0,0.24011022]
[1764696885219,0.00066775,91900.0,91899.0,0.30583022]
[1764696885863,0.00066775,91900.0,91899.0,0.005]
[1764696886099,0.2187856,91900.0,91899.0,0.02248]
[1764696886313,0.00066775,91900.0,91899.0,0.02248]
[1764696886475,0.00066775,91900.0,91899.0,0.005]
[1764696886680,0.00066775,91900.0,91899.0,0.24011022]
[1764696886882,0.00066775,91900.0,91899.0,0.40150022]
[1764696887196,0.00066775,91900.0,91899.0,0.42344197]
[1764696887598,0.00066775,91900.0,91899.0,0.72450022]
[1764696887774,0.00066775,91900.0,91899.0,0.74644197]
[1764696887980,0.00066775,91900.0,91899.0,0.82638757]
[1764696888179,0.00066775,91900.0,91899.0,0.80444582]
[1764696888385,0.00066775,91900.0,91899.0,0.82138757]
[1764696888695,0.00366775,91900.0,91899.0,0.82138757]
[1764696889266,0.00366775,91900.0,91899.0,0.79944582]
[1764696889465,0.00066775,91900.0,91899.0,0.82138757]
[1764696889684,0.00066775,91900.0,91899.0,0.74244197]
[1764696889685,0.00866775,91900.0,91899.0,0.74244197]
[1764696889887,0.00966775,91900.0,91899.0,0.74244197]
[1764696890090,0.00166775,91900.0,91899.0,0.74144197]
[1764696890902,0.21754299,91936.0,91930.0,0.01087784]
[1764696891101,0.01087725,91935.0,91932.0,0.21755115]
[1764696891284,0.22842336,91935.0,91931.0,0.24591218]
[1764696891493,0.22841066,91940.0,91934.0,0.11283]
[1764696891686,0.02608736,91934.0,91931.0,0.21755311]
[1764696891896,0.01087748,91933.0,91924.0,0.21756938]
[1764696892213,0.00092861,91932.0,91927.0,0.22843975]
[1764696892419,0.010993,91933.0,91930.0,0.22843278]
[1764696892630,0.00011552,91933.0,91932.0,0.06572]
[1764696892946,0.00107314,91933.0,91932.0,0.06572]
[1764696893353,0.00107314,91933.0,91932.0,0.2832721]
[1764696893878,0.00107314,91933.0,91932.0,0.06572]
[1764696894277,0.21862287,91933.0,91932.0,0.06572]
[1764696895017,0.00107314,91933.0,91932.0,0.2842721]
[1764696895215,0.00107314,91933.0,91932.0,0.2862721]
[1764696895425,0.00107314,91933.0,91932.0,0.3994221]
[1764696898281,0.00107314,91933.0,91932.0,0.42136385]
[1764696898507,0.00107314,91933.0,91932.0,0.7224221]
[1764696898674,0.00107314,91933.0,91932.0,0.74436385]
[1764696899071,0.00107314,91933.0,91932.0,0.7224221]
[1764696899401,0.00107314,91933.0,91932.0,0.74436385]
[1764696899612,0.00107314,91933.0,91932.0,0.7224221]
[1764696900163,0.00107314,91933.0,91932.0,0.74436385]
[1764696900585,0.00107314,91933.0,91932.0,0.06872]
[1764696900798,0.00107314,91933.0,91932.0,0.18187]
[1764696901179,0.00107314,91933.0,91932.0,0.20381175]
[1764696901394,0.00107314,91933.0,91932.0,0.52681175]
[1764696902143,0.00107314,91933.0,91932.0,0.74436385]
[1764696902342,0.00107314,91933.0,91932.0,0.78494509]
[1764696902774,0.00107314,91933.0,91932.0,0.7224221]
[1764696903207,0.00107314,91933.0,91932.0,0.7049421]
[1764696903420,0.00107314,91933.0,91932.0,0.48739]
[1764696903563,0.21862287,91933.0,91932.0,0.06872]
[1764696903912,0.00107314,91933.0,91932.0,0.18087]
[1764696904120,0.0002,91950.0,91949.0,0.54051188]
[1764696904274,0.00058491,91950.0,91949.0,0.67082188]
[1764696904480,0.00058491,91950.0,91949.0,1.03905363]
[1764696904703,0.00058491,91950.0,91949.0,0.76649188]
[1764696905352,0.00158491,91950.0,91949.0,0.76649188]
[1764696905551,0.00158491,91950.0,91949.0,0.84621447]
[1764696905751,0.00158491,91950.0,91949.0,0.84721447]
[1764696905957,0.00158491,91950.0,91949.0,0.86915622]
[1764696906163,0.00158491,91950.0,91949.0,0.85195662]
[1764696906391,0.00158491,91950.0,91949.0,1.12005662]
[1764696906644,0.0002,91960.0,91959.0,0.87111121]
[1764696906860,0.0002,91960.0,91959.0,0.96556822]
[1764696907189,0.0002,91960.0,91959.0,0.98304822]
[1764696907341,0.0002,91960.0,91959.0,1.00498997]
[1764696907551,0.0002,91960.0,91959.0,0.17446]
[1764696908163,0.0082,91960.0,91959.0,0.49746]
[1764696908366,0.0092,91960.0,91959.0,0.49746]
[1764696908564,0.0092,91960.0,91959.0,0.17446]
[1764696908768,0.0082,91960.0,91959.0,0.17446]
[1764696908980,0.0082,91960.0,91959.0,0.49746]
[1764696909180,0.0102,91960.0,91959.0,0.49746]
[1764696909398,0.0102,91960.0,91959.0,0.51940175]
[1764696909642,0.0022,91960.0,91959.0,0.51940175]
[1764696909854,0.0122,91960.0,91959.0,0.52040175]
[1764696910274,0.00098313,91960.0,91959.0,0.49746]
[1764696910497,0.00098313,91960.0,91959.0,0.47998]
[1764696910697,0.00198313,91960.0,91959.0,0.17446]
[1764696910845,0.00198313,91960.0,91959.0,0.19620882]
[1764696911103,0.00998313,91960.0,91959.0,0.17446]
[1764696911310,0.00998313,91960.0,91959.0,0.17442]
[1764696911311,0.00098313,91960.0,91959.0,0.17442]
[1764696911518,0.00098313,91960.0,91959.0,0.17542]
[1764696911655,0.01298313,91960.0,91959.0,0.39290822]
[1764696912423,0.01298313,91960.0,91959.0,0.37546822]
[1764696912739,0.01298313,91960.0,91959.0,0.39290822]
[1764696912943,0.01298313,91960.0,91959.0,0.86230822]
[1764696913244,0.01298313,91960.0,91959.0,0.88424997]
[1764696913583,0.01298313,91960.0,91959.0,0.84486822]
[1764696913762,0.01298313,91960.0,91959.0,0.86230822]
[1764696913966,0.01298313,91960.0,91959.0,0.88424997]
[1764696914788,0.01298313,91960.0,91959.0,0.86230822]
[1764696915390,0.01298313,91960.0,91959.0,0.88424997]
[1764696915796,0.01298313,91960.0,91959.0,0.86230822]
[1764696916092,0.01298313,91960.0,91959.0,1.15234997]
[1764696917133,0.0002,91970.0,91959.0,1.13040822]
[1764696917362,0.0002,91990.0,91989.0,0.21741729]
[1764696917733,0.0002,91990.0,91989.0,0.36797904]
[1764696917734,0.00031545,91990.0,91989.0,0.36797904]
[1764696917928,0.00031545,91990.0,91989.0,0.46357904]
[1764696918146,0.00031545,91990.0,91989.0,0.44163729]
[1764696918558,0.00031545,91990.0,91989.0,1.03273729]
[1764696918764,0.00031545,91990.0,91989.0,1.05467904]
[1764696919038,0.00031545,91990.0,91989.0,1.03273729]
[1764696919276,0.00431545,91990.0,91989.0,1.05467904]
[1764696919491,0.00031545,91990.0,91989.0,0.54722]
[1764696919705,0.01087275,91973.0,91957.0,0.31309147]
[1764696919945,0.01087169,91982.0,91972.0,0.01087287]
[1764696920150,0.22831438,91979.0,91972.0,0.22833007]
[1764696920368,0.22831005,91981.0,91972.0,0.01087287]
[1764696920549,0.0108711,91987.0,91981.0,0.01087181]
[1764696920775,0.22829661,91986.0,91981.0,0.07225181]
[1764696920980,0.01218619,91990.0,91985.0,0.01087133]
[1764696921211,0.01087121,91986.0,91981.0,0.0498]
[1764696921412,0.21743651,91981.0,91977.0,0.01087228]
[1764696921618,0.22830647,91982.0,91979.0,0.21744068]
[1764696921825,0.01087145,91984.0,91978.0,0.01744]
[1764696922026,0.22829312,91987.0,91983.0,0.22830239]
[1764696922430,0.21742509,91986.0,91983.0,0.22830239]
[1764696922640,0.21741731,91989.0,91986.0,0.2174237]
[1764696922835,0.01118619,91990.0,91984.0,0.22830021]
[1764696923037,0.01205593,91990.0,91985.0,0.21742579]
[1764696923341,0.01205593,91990.0,91987.0,0.21742194]
[1764696923342,0.01118619,91990.0,91987.0,0.21742194]
[1764696923539,0.00031545,91990.0,91988.0,0.21741791]
[1764696924143,0.00031545,91990.0,91986.0,0.21842396]
[1764696924342,0.01087086,91989.0,91986.0,0.21742396]
[1764696924574,0.01087086,91989.0,91987.0,0.001]
[1764696924771,0.00031545,91990.0,91988.0,0.0654]
[1764696925078,0.01118619,91990.0,91987.0,0.001]
[1764696925229,0.21741845,91989.0,91987.0,0.001]
[1764696925447,0.21741845,91989.0,91988.0,0.01744]
[1764696926283,0.21741845,91989.0,91988.0,0.01667]
[1764696926682,0.00031545,91990.0,91988.0,0.37554966]
[1764696926828,0.00031545,91990.0,91989.0,0.01744]
[1764696927276,0.21773146,91990.0,91989.0,0.01744]
[1764696927719,0.00031545,91990.0,91988.0,0.007]
[1764696927878,0.00031545,91990.0,91989.0,0.01744]
[1764696928248,0.21741729,91989.0,91988.0,0.002]
[1764696928521,0.21741729,91989.0,91988.0,0.01944]
[1764696929625,0.21841729,91989.0,91988.0,0.02544]
[1764696930083,0.21925805,91989.0,91988.0,0.02544]
[1764696930261,0.21974805,91989.0,91988.0,0.008]
[1764696930574,0.26875805,91989.0,91988.0,0.008]
[1764696930716,0.36639369,91989.0,91988.0,0.01]
[1764696930923,0.26875805,91989.0,91988.0,0.01]
[1764696931148,0.29065908,91989.0,91988.0,0.01]
[1764696931358,0.21750951,91950.0,91949.0,0.04711]
[1764696931529,0.01087488,91955.0,91949.0,0.07542559]
[1764696931754,0.02274,91960.0,91959.0,0.01087441]
[1764696931940,0.00023199,91968.0,91959.0,0.01087441]
[1764696931941,0.02274,91967.0,91961.0,0.22835623]
[1764696932140,0.0390644,91967.0,91964.0,0.01087382]
[1764696932362,0.22835124,91964.0,91960.0,0.22835984]
[1764696932599,0.01087382,91964.0,91961.0,0.22835729]
[1764696932737,0.2174793,91963.0,91960.0,0.22835984]
[1764696932941,0.2174793,91963.0,91959.0,0.01087441]
[1764696932942,0.22835323,91963.0,91959.0,0.01087441]
[1764696933139,0.0108737,91965.0,91961.0,0.01087417]
[1764696933339,0.01110533,91968.0,91965.0,0.0108737]
[1764696933544,0.21747694,91964.0,91962.0,0.01744]
[1764696933753,0.21748349,91961.0,91960.0,0.002]
[1764696933952,0.21748349,91961.0,91960.0,0.01744]
[1764696934334,0.00023199,91968.0,91967.0,0.2174693]
[1764696934671,0.00023199,91968.0,91967.0,0.2828693]
[1764696934873,0.00023199,91968.0,91967.0,0.3755993]
[1764696935474,0.00123199,91968.0,91967.0,0.3815993]
[1764696935704,0.00123199,91968.0,91967.0,0.7045993]
[1764696935886,0.0002,91990.0,91989.0,0.21741729]
[1764696936193,0.00083778,91990.0,91989.0,0.34762729]
[1764696936435,0.00083778,91990.0,91989.0,0.42262729]
[1764696936639,0.00083778,91990.0,91989.0,0.44006729]
[1764696937275,0.00183778,91990.0,91989.0,0.44006729]
[1764696937631,0.00083778,91990.0,91989.0,0.22265]
[1764696937841,0.00083778,91990.0,91989.0,0.24459175]
[1764696938454,0.00083778,91990.0,91989.0,0.22715175]
[1764696938661,0.00483778,91990.0,91989.0,0.22265]
[1764696939075,0.00483778,91990.0,91989.0,0.24459175]
[1764696939309,0.00483778,91990.0,91989.0,0.20521]
[1764696939936,0.00683778,91990.0,91989.0,0.04808]
[1764696940143,0.01087204,91979.0,91971.0,0.01087299]
[1764696940330,0.01087098,91988.0,91981.0,0.04808]
[1764696940532,0.01087121,91986.0,91981.0,0.11277]
[1764696940708,0.01087145,91984.0,91981.0,0.04808]
[1764696940913,0.22830106,91984.0,91982.0,0.01744]
[1764696941995,0.22830106,91984.0,91978.0,0.21744131]
[1764696941996,0.01087157,91983.0,91978.0,0.21744131]
[1764696942135,0.21743685,91981.0,91979.0,0.01744]
[1764696942319,0.22830866,91981.0,91979.0,0.01744]
[1764696942842,0.01087275,91973.0,91965.0,0.0603437]
[1764696943058,0.01087275,91973.0,91968.0,0.01087334]
[1764696943248,0.01087263,91974.0,91966.0,0.02831358]
[1764696943454,0.01087275,91973.0,91968.0,0.01087334]
[1764696943671,0.21745748,91972.0,91969.0,0.01087322]
[1764696943947,0.22832498,91975.0,91972.0,0.21745643]
[1764696944179,0.01087157,91983.0,91978.0,0.005]
[1764696944382,0.22830247,91984.0,91981.0,0.22830727]
[1764696944550,0.01087145,91984.0,91981.0,0.01087181]
[1764696944755,0.22829678,91986.0,91983.0,0.263431]
[1764696944984,0.21742798,91985.0,91983.0,0.046]
[1764696945158,0.21742764,91985.0,91983.0,0.046]
[1764696946675,0.23375204,91985.0,91984.0,0.01744]
[1764696946849,0.23375204,91985.0,91983.0,0.001]
[1764696947265,0.00046387,91984.0,91983.0,0.005]
[1764696947516,0.22876443,91984.0,91977.0,0.21744528]
[1764696947721,0.21743261,91983.0,91981.0,0.01744]
[1764696948315,0.21743384,91982.0,91981.0,0.01744]
[1764696948495,0.22830329,91984.0,91969.0,0.21746419]
[1764696948496,0.01087287,91972.0,91969.0,0.21746419]
[1764696948695,0.21745985,91971.0,91970.0,0.01744]
[1764696948900,0.22833079,91972.0,91970.0,0.01744]
[1764696949306,0.01087287,91972.0,91970.0,0.23490199]
[1764696949514,0.01087192,91980.0,91972.0,0.01087287]
[1764696949766,0.0108724,91976.0,91972.0,0.01087287]
[1764696949980,0.21745985,91971.0,91970.0,0.01744]
[1764696950120,0.22832741,91974.0,91970.0,0.22833509]
[1764696950342,0.22832741,91974.0,91971.0,0.21745961]
[1764696950548,0.21746221,91970.0,91969.0,0.004]
[1764696950887,0.01087287,91972.0,91969.0,0.2457755]
[1764696951095,0.01087287,91972.0,91970.0,0.004]
[1764696951308,0.21745985,91971.0,91970.0,0.004]
[1764696951540,0.01087417,91961.0,91958.0,0.046]
[1764696951680,0.01087523,91952.0,91949.0,0.04711]
[1764696951878,0.22970824,91959.0,91956.0,0.21749494]
[1764696952108,0.24058265,91959.0,91955.0,0.01087488]
[1764696952311,0.22836265,91959.0,91955.0,0.01087488]
[1764696952513,0.01087441,91959.0,91956.0,0.01744]
[1764696952718,0.21749062,91958.0,91956.0,0.01744]
[1764696952916,0.21749295,91957.0,91956.0,0.01744]
[1764696953116,0.22836291,91959.0,91956.0,0.01744]
[1764696953325,0.22836511,91958.0,91956.0,0.01844]
[1764696953526,0.21749295,91957.0,91956.0,0.001]
[1764696953730,0.2283804,91952.0,91948.0,0.21751253]
[1764696953988,0.2283804,91952.0,91944.0,0.01087618]
[1764696953989,0.21750951,91950.0,91944.0,0.01087618]
[1764696954197,0.01087559,91949.0,91945.0,0.21752104]
[1764696954425,0.01087523,91952.0,91947.0,0.01087583]
[1764696954426,0.01087535,91951.0,91947.0,0.01087583]
[1764696954630,0.22838005,91952.0,91949.0,0.22838635]
[1764696954840,0.010875,91954.0,91951.0,0.06458]
[1764696955042,0.010875,91954.0,91951.0,0.22838185]
[1764696955252,0.01087535,91951.0,91946.0,0.01087594]
[1764696955488,0.22837705,91954.0,91951.0,0.01087535]
[1764696955702,0.01087429,91960.0,91954.0,0.010875]
[1764696955905,0.01087429,91960.0,91956.0,0.22836985]
[1764696956110,0.01087429,91960.0,91954.0,0.010875]
[1764696956111,0.22836033,91960.0,91955.0,0.01087488]
[1764696956316,0.01087464,91957.0,91954.0,0.010875]
[1764696956527,0.22837008,91956.0,91953.0,0.26350212]
[1764696956752,0.22837183,91956.0,91953.0,0.05687512]
[1764696956967,0.21749843,91955.0,91954.0,0.001]
[1764696957173,0.01087452,91958.0,91954.0,0.011875]
[1764696957380,0.22836091,91960.0,91955.0,0.01087488]
[1764696957582,0.01087393,91963.0,91954.0,0.011875]
[1764696957583,0.01087441,91959.0,91954.0,0.011875]
[1764696957787,0.21749546,91956.0,91954.0,0.001]
[1764696958012,0.21749768,91955.0,91954.0,0.001]
[1764696958236,0.21749768,91955.0,91954.0,0.005]
[1764696958445,0.21749546,91956.0,91954.0,0.004]
[1764696958657,0.21749768,91955.0,91954.0,0.004]
[1764696959086,0.0001154,91959.0,91954.0,0.23237434]
[1764696959288,0.01087452,91958.0,91954.0,0.23237434]
[1764696959499,0.21760365,91959.0,91954.0,0.23237434]
[1764696959500,0.0001154,91959.0,91958.0,0.28207059]
[1764696959701,0.0001154,91959.0,91958.0,0.39662059]
[1764696960102,0.0001154,91959.0,91958.0,0.01744]
[1764696960351,0.0001154,91959.0,91958.0,0.39662059]
[1764696960786,0.01098981,91959.0,91954.0,0.010875]
[1764696960998,0.22847803,91959.0,91958.0,0.005]
[1764696961212,0.22847803,91959.0,91958.0,0.02244]
[1764696961862,0.22847803,91959.0,91958.0,0.005]
[1764696961863,0.27797803,91959.0,91958.0,0.005]
[1764696962126,0.0001154,91959.0,91958.0,0.005]
[1764696962559,0.26710362,91959.0,91958.0,0.005]
[1764696962773,0.26710362,91959.0,91958.0,0.0045]
[1764696962774,0.35152764,91959.0,91958.0,0.0045]
[1764696962987,0.35152764,91959.0,91920.0,0.046]
[1764696962988,0.2175734,91923.0,91922.0,0.01744]
[1764696963405,0.21757299,91924.0,91922.0,0.01744]
[1764696963607,0.01087843,91925.0,91922.0,0.01744]
[1764696963819,0.01087902,91920.0,91915.0,0.00199496]
[1764696964068,0.21758997,91916.0,91915.0,0.00199496]
[1764696964277,0.21758997,91916.0,91915.0,0.00237987]
[1764696965410,0.26708997,91916.0,91915.0,0.00237987]
[1764696965618,0.21758997,91916.0,91915.0,0.00237987]
[1764696966068,0.26709997,91916.0,91915.0,0.00237987]
[1764696966298,0.26709997,91916.0,91915.0,0.00837987]
[1764696966299,0.289001,91916.0,91915.0,0.00837987]
[1764696966981,0.289001,91916.0,91915.0,0.00237987]
[1764696967200,0.289001,91916.0,91915.0,0.00537987]
[1764696967835,0.289001,91916.0,91915.0,0.00237987]
[1764696968680,0.289001,91916.0,91915.0,0.00337987]
[1764696969092,0.289001,91916.0,91915.0,0.00537987]
[1764696969266,0.21856997,91916.0,91915.0,0.00237987]
[1764696969686,0.26709997,91916.0,91915.0,0.00237987]
[1764696969910,0.21767522,91880.0,91879.0,0.04522]
[1764696970119,0.21769655,91871.0,91869.0,0.04522]
[1764696970323,0.21769655,91871.0,91870.0,0.01784]
[1764696970543,0.2176661,91884.0,91870.0,0.0004]
[1764696970756,0.22855721,91881.0,91870.0,0.0004]
[1764696970952,0.01088316,91885.0,91877.0,0.01088411]
[1764696971198,0.0163244,91898.0,91877.0,0.01088411]
[1764696971199,0.00010452,91880.0,91879.0,0.06511]
[1764696973290,0.00010452,91880.0,91879.0,0.1804]
[1764696974681,0.00010452,91880.0,91879.0,0.006]
[1764696974912,0.00010452,91880.0,91879.0,0.02344]
[1764696975517,0.00010452,91880.0,91879.0,0.0244853]
[1764696975723,0.00010452,91880.0,91879.0,0.1640053]
[1764696975916,0.00010452,91880.0,91879.0,0.0895953]
[1764696976103,0.00010452,91880.0,91879.0,0.1814453]
[1764696976327,0.00010452,91880.0,91879.0,0.20321305]
[1764696976531,0.00010452,91880.0,91879.0,0.5044453]
[1764696976944,0.00010452,91880.0,91879.0,0.52638705]
[1764696977354,0.00010452,91880.0,91879.0,0.5044453]
[1764696978118,0.00010452,91880.0,91879.0,0.4870053]
[1764696978316,0.00010452,91880.0,91879.0,0.5044453]
[1764696978533,0.00010452,91880.0,91879.0,0.52638705]
[1764696978721,0.00010452,91880.0,91879.0,0.5044453]
[1764696979065,0.00010452,91880.0,91879.0,0.52638705]
[1764696979506,0.00010452,91880.0,91879.0,0.5044453]
[1764696979696,0.00010452,91880.0,91879.0,0.52638705]
[1764696979861,0.00010452,91880.0,91879.0,0.5044453]
[1764696980494,0.00010452,91880.0,91879.0,0.74406464]
[1764696980692,0.00010452,91880.0,91879.0,0.72212289]
[1764696981477,0.00010452,91880.0,91879.0,0.74406464]
[1764696981702,0.00010452,91880.0,91879.0,0.72212289]
[1764696982496,0.00010452,91880.0,91879.0,0.74406464]
[1764696983350,0.00010452,91880.0,91879.0,0.71196289]
[1764696983777,0.00010452,91880.0,91879.0,1.00200464]
[1764696984021,0.00010452,91880.0,91879.0,1.04258588]
[1764696984675,0.00010452,91880.0,91879.0,1.06452763]